fUSD/lending_fUSD_20240217
["ID","MTS","AMOUNT","RATE_DAILY","PERIOD"]
[314267592,1708129849239,-500.0,0.00053972,60]
[314267593,1708129849249,-1246.43,0.00053972,60]
[314267594,1708129849259,-1596.32,0.00053972,60]
[314267595,1708129849268,-500.0,0.00053972,60]
[314267596,1708129849278,-500.0,0.00053972,60]
[314267597,1708129849287,-614.97,0.00053972,60]
[314267598,1708129849297,-4240.9,0.00053972,60]
[314267599,1708129849307,-10798.57,0.00053972,60]
[314267600,1708129849316,-588.43,0.00053972,60]
[314267601,1708129849326,-250.0,0.00054,2]
[314267602,1708129849336,-150.0,0.00054,2]
[314267603,1708129849346,-494.3200348,0.00054,5]
[314267604,1708129849356,-500.0,0.00054009,60]
[314267605,1708129849366,-658.42,0.00054009,60]
[314267606,1708129849375,-855.06,0.00054009,60]
[314267607,1708129849385,-806.06,0.00054009,60]
[314267608,1708129849394,-163.0,0.00054051,120]
[314267609,1708129849403,-1192.7057559,0.00054057,30]
[314267610,1708129849412,-739.53,0.00054095,120]
[314267611,1708129849422,-500.0,0.00054095,2]
[314267612,1708129849432,-500.0,0.00054095,60]
[314267613,1708129849441,-500.0,0.00054109,60]
[314267614,1708129849451,-800.16,0.00054109,60]
[314267615,1708129849460,-520.94,0.00054109,60]
[314267616,1708129849470,-590.03,0.00054109,60]
[314267617,1708129849480,-500.0,0.00054109,60]
[314267618,1708129849489,-522.44,0.00054109,60]
[314267619,1708129849499,-500.0,0.00054109,60]
[314267620,1708129849509,-545.00659545,0.00054109,60]
[314267621,1708129849519,-898.43,0.00054109,60]
[314267622,1708129849529,-906.17,0.00054109,60]
[314267623,1708129849539,-3972.3,0.00054109,60]
[314267624,1708129849550,-500.0,0.00054109,60]
[314267625,1708129849559,-522.42,0.00054109,60]
[314267626,1708129849570,-656.94,0.00054109,60]
[314267627,1708129849579,-1056.56,0.00054109,14]
[314267628,1708129849590,-518.87,0.00054109,60]
[314267629,1708129849600,-675.21,0.00054109,60]
[314267630,1708129849610,-2600.75,0.00054109,60]
[314267631,1708129849620,-500.0,0.00054109,60]
[314267632,1708129849630,-326.23455363,0.00054145,2]
[314267633,1708129849640,-151.021788,0.00054148,59]
[314267634,1708129849649,-150.39718411,0.00054164,71]
[314267635,1708129849659,-1000.0,0.000542,2]
[314267636,1708129849669,-1694360.69056878,0.00054226,31]
[314267637,1708129849680,-67495.5587719,0.00054226,12]
[314267638,1708129849691,-1203.6,0.00054246,60]
[314267639,1708129849700,-500.0,0.00054246,60]
[314267640,1708129849711,-1246.43,0.00054246,60]
[314267641,1708129849721,-1596.32,0.00054246,60]
[314267642,1708129849731,-500.0,0.00054246,60]
[314267643,1708129849741,-403.83,0.00054246,60]
[314267644,1708129849751,-614.97,0.00054246,60]
[314267645,1708129849762,-4240.9,0.00054246,60]
[314267646,1708129849772,-10798.57,0.00054246,60]
[314267647,1708129849782,-588.43,0.00054246,60]
[314267648,1708129849792,-1000.0,0.00054249,120]
[314267649,1708129849801,-250.0,0.00054274,2]
[314267650,1708129849811,-500.0,0.00054283,60]
[314267651,1708129849821,-658.42,0.00054283,60]
[314267652,1708129849831,-855.06,0.00054283,60]
[314267653,1708129849841,-806.06,0.00054283,60]
[314267654,1708129849851,-1192.7057559,0.00054348,30]
[314267655,1708129849860,-739.53,0.00054369,120]
[314267656,1708129849870,-500.0,0.00054369,2]
[314267657,1708129849880,-500.0,0.00054369,60]
[314267658,1708129849890,-303.25588254,0.00054383,60]
[314267659,1708129849900,-800.16,0.00054383,60]
[314267660,1708129849910,-520.94,0.00054383,60]
[314267661,1708129849919,-590.03,0.00054383,60]
[314267662,1708129849930,-500.0,0.00054383,60]
[314267663,1708129849941,-522.44,0.00054383,60]
[314267664,1708129849951,-500.0,0.00054383,60]
[314267665,1708129849961,-898.43,0.00054383,60]
[314267666,1708129849970,-906.17,0.00054383,60]
[314267667,1708129849980,-3972.3,0.00054383,60]
[314267668,1708129849990,-500.0,0.00054383,60]
[314267669,1708129849999,-522.42,0.00054383,60]
[314267670,1708129850009,-656.94,0.00054383,60]
[314267671,1708129850019,-1056.56,0.00054383,14]
[314267672,1708129850033,-518.87,0.00054383,60]
[314267673,1708129850043,-675.21,0.00054383,60]
[314267674,1708129850053,-2600.75,0.00054383,60]
[314267675,1708129850062,-500.0,0.00054383,60]
[314267676,1708129850073,-633.38361039,0.00054393,15]
[314267677,1708129850084,-25000.0,0.000544,120]
[314267678,1708129850094,-151.021788,0.00054448,58]
[314267679,1708129850104,-200.0,0.0005446,30]
[314267680,1708129850114,-200.0,0.0005446,30]
[314267681,1708129850124,-217.0,0.0005449,30]
[314267682,1708129850133,-216.0,0.0005449,30]
[314267683,1708129850143,-990.68065487,0.000545,45]
[314267684,1708129850153,-5000.0,0.000545,64]
[314267685,1708129850162,-3000.0,0.000545,50]
[314267686,1708129850171,-200.0,0.000545,33]
[314267687,1708129850181,-744.57985173,0.000545,45]
[314267688,1708129850190,-329.81041462,0.000545,45]
[314267689,1708129850201,-450.0,0.000545,45]
[314267690,1708129850210,-200.0,0.000545,2]
[314267691,1708129850221,-458.16326751,0.000545,45]
[314267692,1708129850230,-3286.73410175,0.000545,45]
[314267693,1708129850240,-206.73698117,0.000545,45]
[314267694,1708129850250,-1203.6,0.0005452,120]
[314267695,1708129850259,-500.0,0.0005452,120]
[314267696,1708129850270,-1246.43,0.0005452,120]
[314267697,1708129850280,-1596.32,0.0005452,120]
[314267698,1708129850290,-500.0,0.0005452,120]
[314267699,1708129850300,-614.97,0.0005452,120]
[314267700,1708129850310,-4240.9,0.0005452,120]
[314267701,1708129850321,-10798.57,0.0005452,120]
[314267702,1708129850331,-588.43,0.0005452,120]
[314267703,1708129850342,-250.0,0.00054548,2]
[314267704,1708129850352,-150.0,0.00054548,2]
[314267705,1708129850363,-500.0,0.00054557,120]
[314267706,1708129850373,-658.42,0.00054557,120]
[314267707,1708129850384,-855.06,0.00054557,120]
[314267708,1708129850394,-806.06,0.00054557,120]
[314267709,1708129850404,-800.0,0.00054559,30]
[314267710,1708129850414,-45093.12921297,0.0005456,120]
[314267711,1708129850424,-332.5,0.00054595,120]
[314267712,1708129850435,-163.0,0.00054599,120]
[314267713,1708129850445,-4529.4210237,0.00054629,2]
[314267714,1708129850455,-326.23455361,0.00054634,2]
[314267715,1708129850465,-1192.7057559,0.00054638,30]
[314267716,1708129850476,-739.53,0.00054643,120]
[314267717,1708129850486,-473.91,0.00054643,2]
[314267718,1708129850496,-308.37,0.00054643,120]
[314267719,1708129850506,-67495.5587719,0.00054647,13]
[314267720,1708129850517,-800.16,0.00054657,120]
[314267721,1708129850528,-520.94,0.00054657,120]
[314267722,1708129850539,-590.03,0.00054657,120]
[314267723,1708129850550,-500.0,0.00054657,120]
[314267724,1708129850561,-522.44,0.00054657,120]
[314267725,1708129850572,-500.0,0.00054657,120]
[314267726,1708129850586,-898.43,0.00054657,120]
[314267727,1708129850598,-906.17,0.00054657,120]
[314267728,1708129850610,-3972.3,0.00054657,120]
[314267729,1708129850621,-500.0,0.00054657,120]
[314267730,1708129850633,-522.42,0.00054657,120]
[314267731,1708129850645,-656.94,0.00054657,120]
[314267732,1708129850657,-1056.56,0.00054657,14]
[314267733,1708129850668,-518.87,0.00054657,120]
[314267734,1708129850678,-675.21,0.00054657,120]
[314267735,1708129850689,-2600.75,0.00054657,120]
[314267736,1708129850699,-500.0,0.00054657,120]
[314267737,1708129850710,-1935.73619044,0.00054695,32]
[314267738,1708129850722,-598872.86732426,0.00054698,8]
[314267739,1708129850846,-1134820.61122232,0.00054698,8]
[314267740,1708129850861,-258452.45206557,0.00054698,8]
[314267741,1708129850894,-1133.58549094,0.00054698,8]
[314267742,1708129851032,-1237.36835398,0.00038026,13]
[314267743,1708129851102,-426.27720732,0.00038026,13]
[314267744,1708129851213,-3801.98858525,0.00038026,13]
[314267745,1708129851277,-0.00249295,0.00038026,13]
[314267746,1708129851297,-1377.94924836,0.00038026,13]
[314267747,1708129851314,-489.1349995,0.00038026,13]
[314267748,1708129852101,211.67949478,0.0002,2]
[314267749,1708129907687,550.0,0.00025,3]
[314267750,1708130034148,-1444.0,0.00026999,2]
[314267751,1708130034176,-600.0,0.00027,3]
[314267752,1708130048181,-184.62835549,0.000289,2]
[314267753,1708130048207,-650.0,0.00029,3]
[314267757,1708130652625,9350.83836536,0.00029,2]
[314267760,1708130673105,4871.78678835,0.00029,2]
[314267762,1708130686326,4871.78678835,0.00029,2]
[314267763,1708130723305,4871.78678835,0.00029,2]
[314267765,1708130754988,199.1729141,0.00029,2]
[314267774,1708130949102,-475.48637263,0.00028709,2]
[314267779,1708131032314,-1061.96851172,0.00028708,2]
[314267780,1708131032326,-911.68,0.00028708,2]
[314267781,1708131032372,-1276.5375863,0.00028708,2]
[314267782,1708131032385,-450.0,0.00028708,2]
[314267783,1708131032397,-1677.20607098,0.00028708,2]
[314267784,1708131032409,-351.10664586,0.00028708,2]
[314267785,1708131032437,-266.95294903,0.00028708,2]
[314267786,1708131032448,-372.04136223,0.00028708,2]
[314267787,1708131032460,-9148.09344688,0.00028708,2]
[314267788,1708131032469,-248.58723005,0.00028853,2]
[314267789,1708131032478,-248.58723005,0.00028853,2]
[314267790,1708131032488,-150.0,0.00028854,2]
[314267791,1708131032497,-6854.7486192,0.00029,2]
[314267792,1708131032506,-4871.78678835,0.00029,2]
[314267793,1708131032515,-170.23,0.00030144,2]
[314267794,1708131032526,-700.0,0.00031,3]
[314267795,1708131032535,-2985.4498,0.0003422,2]
[314267796,1708131032544,-457.413333,0.0003452,2]
[314267797,1708131032553,-686.12,0.00034794,2]
[314267798,1708131032562,-914.826666,0.00034931,2]
[314267799,1708131032572,-1143.533333,0.00035068,2]
[314267800,1708131032581,-1600.946666,0.00035342,2]
[314267801,1708131032590,-438.51,0.00035734,2]
[314267802,1708131032599,-158.599388,0.00035944,2]
[314267803,1708131032608,-1829.653333,0.00036,2]
[314267804,1708131032619,-250.0,0.00037301,2]
[314267805,1708131032629,-250.0,0.00037376,2]
[314267806,1708131032639,-218.34785309,0.00037815,2]
[314267807,1708131032648,-852.8636,0.00037825,2]
[314267808,1708131032660,-78750.7696,0.00037825,2]
[314267809,1708131032669,-10784.423,0.00037825,2]
[314267810,1708131032678,-3225.4997,0.00037825,2]
[314267811,1708131032687,-6462.85,0.00037825,2]
[314267812,1708131032696,-150.99,0.00037825,30]
[314267813,1708131032705,-526.2416415,0.00037825,2]
[314267814,1708131032715,-1048.69937976,0.00037825,2]
[314267815,1708131032723,-46307.287,0.00037925,2]
[314267816,1708131032732,-5310.737,0.00037925,2]
[314267817,1708131032741,-18490.7157,0.00037925,2]
[314267818,1708131032750,-989.17324516,0.00037925,2]
[314267819,1708131032763,-10.82675484,0.00037925,2]
[314267820,1708131032773,-14827.17400116,0.00037925,2]
[314267821,1708131032784,-501.6156142,0.00037925,2]
[314267822,1708131032796,-5696.35664311,0.00037925,2]
[314267829,1708131038309,-18463.60504153,0.00037925,2]
[314267830,1708131038319,-100000.0,0.00037925,2]
[314267831,1708131038330,-57032.8027,0.00037925,2]
[314267832,1708131038339,-757.92,0.00037925,2]
[314267833,1708131038348,-1394.02915863,0.00037925,2]
[314267834,1708131038358,-430.36,0.00037995,2]
[314267835,1708131038368,-438.51,0.00037997,2]
[314267836,1708131038378,-135333.97119882,0.00038025,4]
[314267837,1708131038388,-751.99,0.00038025,2]
[314267838,1708131038398,-30494.78837484,0.00038026,13]
[314267839,1708131038410,-18886.11280519,0.00038173,13]
[314267840,1708131038420,-944.30564026,0.00038173,11]
[314267841,1708131038429,-3230.29414814,0.00038173,11]
[314267842,1708131038439,-152.16,0.00038356,2]
[314267843,1708131038449,-250.0,0.00038533,111]
[314267844,1708131038459,-463.27,0.00038684,15]
[314267845,1708131038468,-1394.02915863,0.00038763,2]
[314267846,1708131038479,-5612.0,0.000388,3]
[314267847,1708131038489,-2235.77,0.000388,2]
[314267848,1708131038502,-2000.0,0.00038828,2]
[314267849,1708131038512,-158.59938798,0.00038938,2]
[314267850,1708131038522,-1394.02915863,0.00039601,2]
[314267851,1708131038532,-220.16003444,0.00039908,12]
[314267852,1708131038541,-10000.0,0.0004,15]
[314267853,1708131038551,-438.51,0.00040261,2]
[314267854,1708131038560,-1394.02915863,0.0004044,5]
[314267855,1708131038571,-82088.0192203,0.0004069,6]
[314267856,1708131038580,-261.14,0.000407,2]
[314267857,1708131038590,-500.0,0.00040825,120]
[314267858,1708131038599,-180.0,0.00040932,2]
[314267859,1708131038608,-526.24164145,0.00040937,3]
[314267860,1708131038618,-1048.69937975,0.00040937,3]
[314267861,1708131038627,-10000.0,0.00041,15]
[314267862,1708131038636,-1394.02915863,0.00041278,5]
[314267863,1708131038646,-156.65,0.00041597,2]
[314267864,1708131038656,-158.59938798,0.00041933,2]
[314267865,1708131038665,-404.92133194,0.00041997,2]
[314267866,1708131038675,-10000.0,0.00042,15]
[314267867,1708131038685,-300.0,0.00042,43]
[314267868,1708131038694,-1394.02915863,0.00042116,5]
[314267869,1708131038703,-463.27,0.0004242,15]
[314267870,1708131038713,-438.51,0.00042525,2]
[314267872,1708131038722,-1394.02915863,0.00042954,5]
[314267874,1708131038731,-10000.0,0.00043,15]
[314267876,1708131038740,-1394.02915863,0.00043792,5]
[314267878,1708131038749,-10000.0,0.00044,15]
[314267879,1708131038765,-250.0,0.00044,30]
[314267880,1708131038775,-526.24164145,0.00044049,6]
[314267881,1708131038785,-1048.69937975,0.00044049,6]
[314267882,1708131038795,-1394.02915863,0.00044631,5]
[314267883,1708131038805,-438.51,0.00044789,2]
[314267884,1708131038814,-158.59938798,0.00044927,2]
[314267885,1708131038824,-10000.0,0.00045,15]
[314267886,1708131038833,-2000.0,0.00045,20]
[314267887,1708131038843,-1394.02915863,0.00045469,5]
[314267888,1708131038852,-1000.0,0.00045512,2]
[314267889,1708131038862,-1776.85,0.00045636,120]
[314267890,1708131038871,-463.27,0.00046156,15]
[314267891,1708131038881,-1394.02915863,0.00046307,5]
[314267892,1708131038891,-952.0,0.00046509,2]
[314267893,1708131038901,-414.607,0.00046509,2]
[314267894,1708131038911,-1254.0,0.00046509,2]
[314267895,1708131038920,-1949.0,0.00046509,2]
[314267896,1708131038930,-1231.0,0.00046509,2]
[314267897,1708131038939,-2871.0,0.00046509,2]
[314267898,1708131038949,-180.0,0.00046509,2]
[314267899,1708131038958,-151.005,0.00046509,2]
[314267900,1708131038968,-151.228,0.00046509,2]
[314267901,1708131038977,-180.308,0.00046509,2]
[314267902,1708131038986,-164.052,0.00046509,2]
[314267903,1708131038995,-211.877,0.00046509,2]
[314267904,1708131039004,-150.0,0.00046509,2]
[314267905,1708131039013,-1526.73915084,0.00046648,7]
[314267906,1708131039023,-1743.0,0.000467,115]
[314267907,1708131039033,-165.03399359,0.00046777,7]
[314267908,1708131039042,-197.0,0.00047,30]
[314267909,1708131039051,-438.51,0.00047053,2]
[314267910,1708131039060,-1394.02915863,0.00047145,5]
[314267911,1708131039069,-526.24164145,0.00047161,8]
[314267912,1708131039079,-1048.69937975,0.00047161,8]
[314267913,1708131039088,-1000.0,0.000479,30]
[314267914,1708131039097,-158.59938798,0.00047922,2]
[314267915,1708131039106,-1394.02915863,0.00047984,5]
[314267916,1708131039115,-151.81,0.00048036,2]
[314267917,1708131039125,-1394.02915863,0.00048822,5]
[314267918,1708131039134,-139075.0,0.00048822,30]
[314267919,1708131039144,-326.23455363,0.00049115,2]
[314267920,1708131039153,-538.065654,0.00049128,2]
[314267921,1708131039162,-150.0,0.0004919,2]
[314267922,1708131039172,-430.36,0.00049228,120]
[314267923,1708131039181,-82088.0192203,0.00049305,11]
[314267924,1708131039191,-500.0,0.00049315,60]
[314267925,1708131039200,-500.0,0.00049315,60]
[314267926,1708131039209,-500.0,0.00049315,60]
[314267927,1708131039218,-500.0,0.00049315,60]
[314267928,1708131039228,-500.0,0.00049315,60]
[314267929,1708131039237,-500.0,0.00049315,60]
[314267930,1708131039246,-500.0,0.00049315,60]
[314267931,1708131039256,-500.0,0.00049315,2]
[314267932,1708131039265,-500.0,0.00049315,60]
[314267933,1708131039275,-677.91,0.00049315,120]
[314267934,1708131039285,-500.0,0.00049315,2]
[314267935,1708131039294,-460.22986189,0.00049315,60]
[314267936,1708131039303,-500.0,0.00049315,60]
[314267937,1708131039312,-628.89,0.00049315,60]
[314267938,1708131039321,-736.38,0.00049315,60]
[314267939,1708131039330,-500.0,0.00049315,60]
[314267940,1708131039340,-500.0,0.00049315,60]
[314267941,1708131039350,-500.0,0.00049315,60]
[314267942,1708131039359,-500.0,0.00049315,60]
[314267943,1708131039368,-541.924879,0.00049315,60]
[314267944,1708131039378,-500.0,0.00049315,60]
[314267945,1708131039387,-500.0,0.00049315,60]
[314267946,1708131039396,-500.0,0.00049315,60]
[314267947,1708131039408,-500.0,0.00049315,60]
[314267948,1708131039417,-583.21,0.00049315,60]
[314267949,1708131039427,-150.0,0.00049315,60]
[314267950,1708131039436,-500.0,0.00049315,60]
[314267951,1708131039446,-500.0,0.00049315,2]
[314267952,1708131039456,-500.0,0.00049315,60]
[314267953,1708131039465,-500.0,0.00049315,60]
[314267954,1708131039475,-500.0,0.00049315,60]
[314267955,1708131039485,-500.0,0.00049315,2]
[314267956,1708131039495,-583.72,0.00049315,60]
[314267957,1708131039505,-500.0,0.00049315,60]
[314267958,1708131039514,-500.0,0.00049315,60]
[314267959,1708131039523,-428.98211324,0.00049315,60]
[314267960,1708131039534,-500.0,0.00049315,60]
[314267961,1708131039543,-500.0,0.00049315,60]
[314267962,1708131039552,-500.0,0.00049315,2]
[314267963,1708131039562,-500.0,0.00049315,7]
[314267964,1708131039572,-504.15,0.00049315,60]
[314267965,1708131039582,-500.0,0.00049315,60]
[314267966,1708131039592,-500.0,0.00049315,60]
[314267967,1708131039602,-1950.56,0.00049315,60]
[314267968,1708131039611,-630.0173781,0.00049315,60]
[314267969,1708131039620,-500.0,0.00049315,60]
[314267970,1708131039654,-500.0,0.00049315,60]
[314267971,1708131039880,-500.0,0.00049315,60]
[314267972,1708131039891,-500.0,0.00049315,60]
[314267973,1708131039901,-500.0,0.00049315,60]
[314267974,1708131039911,-500.0,0.00049315,60]
[314267975,1708131039921,-500.0,0.00049315,60]
[314267976,1708131039931,-500.0,0.00049315,60]
[314267977,1708131039940,-500.0,0.00049315,60]
[314267978,1708131039951,-500.0,0.00049315,60]
[314267979,1708131039960,-1028.22,0.00049315,60]
[314267980,1708131039970,-500.0,0.00049315,60]
[314267981,1708131039980,-500.0,0.00049315,60]
[314267982,1708131039989,-617.78,0.00049315,60]
[314267983,1708131039999,-792.42,0.00049315,14]
[314267984,1708131040009,-500.0,0.00049315,60]
[314267985,1708131040019,-500.0,0.00049315,60]
[314267986,1708131040030,-500.0,0.00049315,60]
[314267987,1708131040040,-2467.15,0.00049315,60]
[314267988,1708131040050,-500.0,0.00049315,60]
[314267990,1708131040060,-500.0,0.00049315,60]
[314267991,1708131040069,-500.0,0.00049315,60]
[314267992,1708131040078,-534.54,0.00049315,60]
[314267993,1708131040088,-243.73815533,0.00049315,60]
[314267994,1708131040097,-500.0,0.00049315,60]
[314267995,1708131040107,-598.88,0.00049315,60]
[314267996,1708131040117,-500.0,0.00049315,60]
[314267997,1708131040126,-500.0,0.00049315,60]
[314267998,1708131040136,-500.0,0.00049315,60]
[314267999,1708131040145,-747.86,0.00049315,2]
[314268000,1708131040155,-500.0,0.00049315,60]
[314268001,1708131040165,-500.0,0.00049315,60]
[314268002,1708131040174,-614.79,0.00049315,60]
[314268003,1708131040184,-500.0,0.00049315,60]
[314268004,1708131040192,-500.0,0.00049315,60]
[314268005,1708131040202,-500.0,0.00049315,60]
[314268006,1708131040211,-500.0,0.00049315,60]
[314268007,1708131040220,-500.0,0.00049315,60]
[314268008,1708131040230,-500.0,0.00049315,60]
[314268009,1708131040239,-500.0,0.00049315,60]
[314268010,1708131040248,-602.38,0.00049315,60]
[314268011,1708131040261,-500.0,0.00049315,60]
[314268012,1708131040270,-500.0,0.00049315,60]
[314268013,1708131040281,-1714.77,0.00049315,60]
[314268014,1708131040291,-500.0,0.00049315,60]
[314268015,1708131040301,-500.0,0.00049315,60]
[314268016,1708131040310,-500.0,0.00049315,60]
[314268017,1708131040320,-500.00367492,0.00049315,60]
[314268018,1708131040329,-500.0,0.00049315,60]
[314268019,1708131040339,-500.0,0.00049315,60]
[314268020,1708131040348,-676.18,0.00049315,60]
[314268021,1708131040358,-1450.49,0.00049315,60]
[314268022,1708131040367,-500.0,0.00049315,60]
[314268023,1708131040376,-915.9,0.00049315,60]
[314268024,1708131040386,-500.0,0.00049315,60]
[314268025,1708131040395,-500.0,0.00049315,60]
[314268026,1708131040408,-500.0,0.00049315,60]
[314268027,1708131040418,-500.0,0.00049315,60]
[314268028,1708131040427,-500.0,0.00049315,60]
[314268029,1708131040436,-500.0,0.00049315,60]
[314268030,1708131040446,-500.0,0.00049315,60]
[314268031,1708131040456,-802.55,0.00049315,60]
[314268032,1708131040465,-500.0,0.00049315,60]
[314268033,1708131040475,-862.82,0.00049315,60]
[314268034,1708131040485,-680.86,0.00049315,60]
[314268035,1708131040494,-500.0,0.00049315,60]
[314268036,1708131040504,-510.36223453,0.00049315,60]
[314268037,1708131040513,-500.0,0.00049315,60]
[314268038,1708131040522,-500.0,0.00049315,60]
[314268039,1708131040531,-500.0,0.00049315,60]
[314268040,1708131040541,-500.0,0.00049315,60]
[314268041,1708131040550,-500.0,0.00049315,60]
[314268042,1708131040559,-500.0,0.00049315,60]
[314268043,1708131040569,-500.0,0.00049315,60]
[314268044,1708131040578,-500.0,0.00049315,60]
[314268045,1708131040587,-415.31002703,0.00049315,60]
[314268046,1708131040597,-500.0,0.00049315,60]
[314268047,1708131040606,-500.0,0.00049315,60]
[314268048,1708131040615,-404.18,0.00049315,60]
[314268049,1708131040624,-500.0,0.00049315,60]
[314268050,1708131040633,-500.0,0.00049315,60]
[314268051,1708131040643,-330.88893564,0.00049315,60]
[314268052,1708131040652,-500.0,0.00049315,60]
[314268053,1708131040661,-500.0,0.00049315,60]
[314268054,1708131040671,-1066.03,0.00049315,60]
[314268055,1708131040680,-500.0,0.00049315,60]
[314268056,1708131040689,-500.0,0.00049315,60]
[314268057,1708131040698,-500.0,0.00049315,60]
[314268058,1708131040707,-500.0,0.00049315,60]
[314268059,1708131040716,-500.0,0.00049315,60]
[314268061,1708131040725,-500.0,0.00049315,60]
[314268062,1708131040734,-500.0,0.00049315,60]
[314268063,1708131040743,-500.0,0.00049315,60]
[314268064,1708131040752,-843.26,0.00049315,60]
[314268065,1708131040763,-500.0,0.00049315,60]
[314268066,1708131040772,-745.61,0.00049315,60]
[314268068,1708131040783,-500.0,0.00049315,60]
[314268069,1708131040793,-1277.06,0.00049315,60]
[314268070,1708131040809,-500.0,0.00049315,60]
[314268071,1708131040818,-500.0,0.00049315,60]
[314268072,1708131040828,-500.0,0.00049315,60]
[314268073,1708131040837,-500.0,0.00049315,60]
[314268074,1708131040846,-500.0,0.00049315,60]
[314268075,1708131040855,-840.59,0.00049315,60]
[314268076,1708131040864,-310.57,0.00049315,60]
[314268077,1708131040873,-500.0,0.00049315,60]
[314268078,1708131040883,-500.0,0.00049315,60]
[314268079,1708131040893,-500.0,0.00049315,60]
[314268080,1708131040901,-500.0,0.00049315,60]
[314268081,1708131040911,-3180.68,0.00049315,60]
[314268082,1708131040920,-8098.93,0.00049315,60]
[314268083,1708131040929,-500.0,0.00049315,60]
[314268084,1708131040938,-500.0,0.00049315,60]
[314268085,1708131040948,-500.0,0.00049315,60]
[314268086,1708131040958,-500.0,0.00049315,60]
[314268087,1708131040967,-500.0,0.00049315,60]
[314268088,1708131040976,-3674.72,0.00049315,60]
[314268089,1708131040986,-476.12353809,0.00049315,60]
[314268090,1708131040995,-500.0,0.00049315,60]
[314268091,1708131041005,-350.69,0.00049315,60]
[314268092,1708131041014,-338.82322597,0.00049315,60]
[314268093,1708131041024,-279.87,0.00049315,60]
[314268094,1708131041034,-500.0,0.00049315,60]
[314268095,1708131041043,-500.0,0.00049315,60]
[314268096,1708131041053,-500.0,0.00049315,60]
[314268097,1708131041062,-500.0,0.00049315,60]
[314268098,1708131041071,-500.0,0.00049315,60]
[314268099,1708131041081,-347.04,0.00049315,60]
[314268100,1708131041090,-662.41,0.00049315,60]
[314268101,1708131041099,-500.0,0.00049315,60]
[314268102,1708131041109,-500.0,0.00049315,60]
[314268103,1708131041118,-500.0,0.00049315,60]
[314268104,1708131041127,-500.0,0.00049315,14]
[314268105,1708131041137,-438.51,0.00049317,2]
[314268106,1708131041146,-347.0,0.000494,30]
[314268107,1708131041156,-942.52,0.0004941,2]
[314268108,1708131041166,-1935.73619044,0.00049489,25]
[314268109,1708131041175,-250.0,0.000495,60]
[314268110,1708131041184,-646.813,0.00049509,2]
[314268111,1708131041193,-1949.0,0.00049509,2]
[314268112,1708131041202,-233.473,0.00049509,2]
[314268113,1708131041211,-150.0,0.00049509,2]
[314268114,1708131041220,-500.0,0.00049564,14]
[314268115,1708131041229,-316.05072515,0.00049589,60]
[314268116,1708131041238,-500.0,0.00049589,60]
[314268117,1708131041247,-563.96459234,0.00049589,60]
[314268118,1708131041256,-427.72,0.00049589,60]
[314268119,1708131041265,-500.0,0.00049589,60]
[314268120,1708131041275,-500.0,0.00049589,60]
[314268121,1708131041284,-500.0,0.00049589,60]
[314268122,1708131041293,-500.0,0.00049589,2]
[314268123,1708131041303,-500.0,0.00049589,60]